[Event "*** Titled Tuesday Blitz"]
[Site "Chess.com"]
[Date "2021.02.02"]
[Round "11"]
[White "chescomhuynya"]
[Black "MilosJi"]
[Result "0-1"]
[WhiteElo "2513"]
[BlackElo "2660"]
[TimeControl "180+1"]
[EndTime "12:06:20 PST"]
[Termination "MilosJi won by resignation"]

1. d4 {[%clk 0:03:00.9]} 1... d5 {[%clk 0:02:59.7]} 2. c4 {[%clk 0:03:00.6]}
2... e6 {[%clk 0:03:00.1]} 3. Nf3 {[%clk 0:03:00.1]} 3... Nf6 {[%clk 0:03:00.6]}
4. g3 {[%clk 0:03:00.4]} 4... Bb4+ {[%clk 0:03:00.8]} 5. Bd2 {[%clk 0:03:00.2]}
5... Be7 {[%clk 0:03:01]} 6. Bg2 {[%clk 0:03:00.6]} 6... O-O {[%clk 0:03:01.4]}
7. O-O {[%clk 0:03:01]} 7... c6 {[%clk 0:03:02]} 8. Qc2 {[%clk 0:03:01.1]} 8...
Nbd7 {[%clk 0:03:02.6]} 9. Rd1 {[%clk 0:03:01.1]} 9... b6 {[%clk 0:03:03.1]} 10.
Bf4 {[%clk 0:02:56.2]} 10... Bb7 {[%clk 0:03:02.8]} 11. Nc3 {[%clk 0:02:47.5]}
11... Rc8 {[%clk 0:03:01.7]} 12. e4 {[%clk 0:02:47.4]} 12... a5 {[%clk
0:02:58.8]} 13. Rac1 {[%clk 0:02:40.8]} 13... Ba6 {[%clk 0:02:55.8]} 14. b3
{[%clk 0:02:40.7]} 14... dxc4 {[%clk 0:02:55.2]} 15. Ne5 {[%clk 0:02:07.9]}
15... cxb3 {[%clk 0:02:51]} 16. axb3 {[%clk 0:02:07]} 16... Nxe5 {[%clk
0:02:47.9]} 17. Bxe5 {[%clk 0:02:02.8]} 17... Ba3 {[%clk 0:02:39.8]} 18. Rb1
{[%clk 0:02:01.8]} 18... Bb4 {[%clk 0:02:39.7]} 19. Qb2 {[%clk 0:01:54.4]} 19...
Qe7 {[%clk 0:02:37.9]} 20. h3 {[%clk 0:01:45.5]} 20... Rfd8 {[%clk 0:02:37]} 21.
Kh2 {[%clk 0:01:37.7]} 21... Nd7 {[%clk 0:02:24.5]} 22. Bf4 {[%clk 0:01:37.9]}
22... Nf8 {[%clk 0:02:24.1]} 23. Na2 {[%clk 0:01:27.6]} 23... Bd6 {[%clk
0:02:21.6]} 24. Be3 {[%clk 0:01:26.4]} 24... e5 {[%clk 0:02:09.2]} 25. dxe5
{[%clk 0:01:24.8]} 25... Bxe5 {[%clk 0:02:09.1]} 26. Qc2 {[%clk 0:01:25.1]}
26... c5 {[%clk 0:02:07.9]} 27. Nc3 {[%clk 0:01:23.7]} 27... Bxc3 {[%clk
0:02:03.2]} 28. Qxc3 {[%clk 0:01:24]} 28... Bb7 {[%clk 0:02:00.5]} 29. Qc2
{[%clk 0:01:18]} 29... Ne6 {[%clk 0:01:59.6]} 30. f4 {[%clk 0:01:14]} 30... Nd4
{[%clk 0:01:57.7]} 31. Bxd4 {[%clk 0:01:12.4]} 31... cxd4 {[%clk 0:01:57.5]} 32.
Qe2 {[%clk 0:01:10.2]} 32... Rc3 {[%clk 0:01:40.7]} 33. Qf2 {[%clk 0:01:00.2]}
33... Bxe4 {[%clk 0:01:32.7]} 34. Re1 {[%clk 0:00:45.5]} 34... f5 {[%clk
0:01:24.7]} 35. Rbd1 {[%clk 0:00:45.7]} 35... d3 {[%clk 0:00:43.7]} 36. Qxb6
{[%clk 0:00:45]} 36... Rc2 {[%clk 0:00:43.6]} 37. Rg1 {[%clk 0:00:38.1]} 37...
Rxg2+ {[%clk 0:00:40.4]} 38. Rxg2 {[%clk 0:00:37.8]} 38... Bxg2 {[%clk
0:00:40.8]} 0-1

[Event "*** Titled Tuesday Blitz"]
[Site "Chess.com"]
[Date "2021.02.02"]
[Round "11"]
[White "rynos0411"]
[Black "korbul"]
[Result "0-1"]
[WhiteElo "2398"]
[BlackElo "2601"]
[TimeControl "180+1"]
[EndTime "12:06:20 PST"]
[Termination "korbul won on time"]

1. e4 {[%clk 0:02:52.7]} 1... c5 {[%clk 0:02:59.3]} 2. Nf3 {[%clk 0:02:52.3]}
2... e6 {[%clk 0:02:59.4]} 3. g3 {[%clk 0:02:50.9]} 3... Nc6 {[%clk 0:02:58.5]}
4. Bg2 {[%clk 0:02:50.7]} 4... Nf6 {[%clk 0:02:57.9]} 5. Qe2 {[%clk 0:02:50.8]}
5... Be7 {[%clk 0:02:57.2]} 6. c3 {[%clk 0:02:48.7]} 6... d5 {[%clk 0:02:56.4]}
7. e5 {[%clk 0:02:33.2]} 7... Nd7 {[%clk 0:02:56.2]} 8. d4 {[%clk 0:02:34.1]}
8... O-O {[%clk 0:02:55.3]} 9. O-O {[%clk 0:02:33.7]} 9... b6 {[%clk 0:02:53.2]}
10. a4 {[%clk 0:02:27.3]} 10... a5 {[%clk 0:02:52.5]} 11. Rd1 {[%clk 0:02:26.1]}
11... Ba6 {[%clk 0:02:48.2]} 12. Qe3 {[%clk 0:02:11.6]} 12... cxd4 {[%clk
0:02:46]} 13. cxd4 {[%clk 0:02:12.5]} 13... Nb4 {[%clk 0:02:45.6]} 14. Na3
{[%clk 0:02:13.1]} 14... Rc8 {[%clk 0:02:40.9]} 15. Bd2 {[%clk 0:02:10.7]} 15...
Nb8 {[%clk 0:02:39.5]} 16. Bc3 {[%clk 0:02:08.2]} 16... Qd7 {[%clk 0:02:28.7]}
17. b3 {[%clk 0:01:46.3]} 17... Rc7 {[%clk 0:02:23.3]} 18. Bf1 {[%clk
0:01:39.8]} 18... Rfc8 {[%clk 0:02:16.9]} 19. Bxa6 {[%clk 0:01:32.9]} 19...
N8xa6 {[%clk 0:02:12.6]} 20. Nb5 {[%clk 0:01:28.5]} 20... Nc2 {[%clk 0:02:10.9]}
21. Qe2 {[%clk 0:01:19.8]} 21... Nxa1 {[%clk 0:02:08]} 22. Nxc7 {[%clk
0:01:11.7]} 22... Qxc7 {[%clk 0:01:43.6]} 23. Qxa6 {[%clk 0:00:28.2]} 23... Qxc3
{[%clk 0:01:33.8]} 24. Kg2 {[%clk 0:00:26.6]} 24... Nxb3 {[%clk 0:01:31.1]} 25.
Rd3 {[%clk 0:00:25.9]} 25... Qc4 {[%clk 0:01:29]} 26. Qb7 {[%clk 0:00:12.4]}
26... Nc1 {[%clk 0:00:54.4]} 27. Rd1 {[%clk 0:00:09]} 27... Bf8 {[%clk
0:00:53.2]} 28. Nd2 {[%clk 0:00:07.2]} 28... Qc7 {[%clk 0:00:50.4]} 29. Qa6
{[%clk 0:00:04.3]} 29... Na2 {[%clk 0:00:48.4]} 30. Nf3 {[%clk 0:00:02.5]} 30...
Nb4 {[%clk 0:00:47.8]} 31. Qb5 {[%clk 0:00:02.8]} 31... Qc6 {[%clk 0:00:47]} 32.
Qe2 {[%clk 0:00:02]} 32... Qxa4 {[%clk 0:00:46.6]} 33. h4 {[%clk 0:00:01.7]}
33... Qc2 {[%clk 0:00:44.1]} 34. Rd2 {[%clk 0:00:01.5]} 34... Qe4 {[%clk
0:00:43.4]} 35. Qd1 {[%clk 0:00:01.7]} 35... Rc2 {[%clk 0:00:39.4]} 0-1

[Event "*** Titled Tuesday Blitz"]
[Site "Chess.com"]
[Date "2021.02.02"]
[Round "11"]
[White "DamianoLew95"]
[Black "IMJonathanCarlstedt"]
[Result "0-1"]
[WhiteElo "2584"]
[BlackElo "2499"]
[TimeControl "180+1"]
[EndTime "12:06:21 PST"]
[Termination "IMJonathanCarlstedt won by resignation"]

1. e4 {[%clk 0:02:27.9]} 1... g6 {[%clk 0:03:00.9]} 2. d4 {[%clk 0:02:27.6]}
2... Bg7 {[%clk 0:03:01]} 3. f4 {[%clk 0:02:28.2]} 3... d6 {[%clk 0:03:00.9]} 4.
Nf3 {[%clk 0:02:28.6]} 4... a6 {[%clk 0:03:00.5]} 5. Be2 {[%clk 0:02:27.9]} 5...
b5 {[%clk 0:03:00.5]} 6. O-O {[%clk 0:02:28.3]} 6... Bb7 {[%clk 0:03:00.7]} 7.
d5 {[%clk 0:02:28.7]} 7... Nf6 {[%clk 0:02:58.5]} 8. Nbd2 {[%clk 0:02:25]} 8...
O-O {[%clk 0:02:57.6]} 9. a4 {[%clk 0:02:23.9]} 9... bxa4 {[%clk 0:02:49.9]} 10.
Rxa4 {[%clk 0:02:23.3]} 10... c6 {[%clk 0:02:50.5]} 11. c4 {[%clk 0:02:21.8]}
11... Nbd7 {[%clk 0:02:50]} 12. Rb4 {[%clk 0:02:17.1]} 12... Qc7 {[%clk
0:02:48.2]} 13. b3 {[%clk 0:02:03.1]} 13... cxd5 {[%clk 0:02:44]} 14. Rxb7
{[%clk 0:01:54.1]} 14... Qxb7 {[%clk 0:02:42.6]} 15. exd5 {[%clk 0:01:52.7]}
15... Nc5 {[%clk 0:02:41.7]} 16. Qc2 {[%clk 0:01:48.7]} 16... a5 {[%clk
0:02:40.9]} 17. Ba3 {[%clk 0:01:46.1]} 17... Nfd7 {[%clk 0:02:38.6]} 18. f5
{[%clk 0:01:44.1]} 18... Rfb8 {[%clk 0:02:36]} 19. fxg6 {[%clk 0:01:43.4]} 19...
hxg6 {[%clk 0:02:35.1]} 20. Ng5 {[%clk 0:01:43.5]} 20... Ne5 {[%clk 0:02:30.9]}
21. Nxf7 {[%clk 0:01:31.6]} 21... Nxf7 {[%clk 0:02:21.4]} 22. Qxg6 {[%clk
0:01:31]} 22... Ne5 {[%clk 0:02:14.7]} 23. Qh5 {[%clk 0:01:31.1]} 23... Qd7
{[%clk 0:01:57.3]} 24. Bxc5 {[%clk 0:01:20.7]} 24... dxc5 {[%clk 0:01:58.2]} 25.
Ne4 {[%clk 0:01:21]} 25... Qe8 {[%clk 0:01:51.7]} 26. Qh4 {[%clk 0:01:10.9]}
26... Rb6 {[%clk 0:01:49.4]} 27. Ng5 {[%clk 0:00:56.9]} 27... Rh6 {[%clk
0:01:38.6]} 28. Qg3 {[%clk 0:00:45.4]} 28... Qg6 {[%clk 0:01:34.5]} 29. h4
{[%clk 0:00:45.3]} 29... Rf8 {[%clk 0:01:20.6]} 30. Rxf8+ {[%clk 0:00:44.7]}
30... Kxf8 {[%clk 0:01:20.8]} 31. h5 {[%clk 0:00:40.5]} 31... Qf6 {[%clk
0:01:19.8]} 32. Ne6+ {[%clk 0:00:37.4]} 32... Kg8 {[%clk 0:01:16.5]} 33. Bd1
{[%clk 0:00:27.9]} 33... Qf7 {[%clk 0:01:10.2]} 34. Qg5 {[%clk 0:00:20.7]} 34...
Rf6 {[%clk 0:01:06.1]} 35. Bc2 {[%clk 0:00:17.8]} 35... Rf1+ {[%clk 0:01:04.1]}
36. Kh2 {[%clk 0:00:17.7]} 36... Qf6 {[%clk 0:00:59.2]} 37. Qg3 {[%clk
0:00:13.8]} 37... Kh8 {[%clk 0:00:47.9]} 38. Bg6 {[%clk 0:00:13.5]} 38... Bh6
{[%clk 0:00:47.1]} 39. Be4 {[%clk 0:00:07.7]} 39... Bf4 {[%clk 0:00:46]} 40.
Nxf4 {[%clk 0:00:08]} 40... Qxf4 {[%clk 0:00:46.5]} 0-1

[Event "*** Titled Tuesday Blitz"]
[Site "Chess.com"]
[Date "2021.02.02"]
[Round "11"]
[White "ElGasanov"]
[Black "Philosopherrr"]
[Result "0-1"]
[WhiteElo "2814"]
[BlackElo "2619"]
[TimeControl "180+1"]
[EndTime "12:06:25 PST"]
[Termination "Philosopherrr won by resignation"]

1. d4 {[%clk 0:03:00.9]} 1... Nf6 {[%clk 0:02:59.8]} 2. c4 {[%clk 0:02:58.1]}
2... e6 {[%clk 0:02:59.5]} 3. Nc3 {[%clk 0:02:55.4]} 3... c5 {[%clk 0:02:59.9]}
4. d5 {[%clk 0:02:54.2]} 4... exd5 {[%clk 0:03:00.8]} 5. cxd5 {[%clk 0:02:55]}
5... d6 {[%clk 0:03:01.7]} 6. Nf3 {[%clk 0:02:47.7]} 6... g6 {[%clk 0:03:00.7]}
7. Bg5 {[%clk 0:02:48.3]} 7... h6 {[%clk 0:02:55.9]} 8. Bh4 {[%clk 0:02:46.1]}
8... Bg7 {[%clk 0:02:54.8]} 9. e3 {[%clk 0:02:45.6]} 9... O-O {[%clk 0:02:51.9]}
10. Nd2 {[%clk 0:02:44.3]} 10... Nbd7 {[%clk 0:02:46.2]} 11. Be2 {[%clk
0:02:42.9]} 11... a6 {[%clk 0:02:44.7]} 12. O-O {[%clk 0:02:26.9]} 12... Qe7
{[%clk 0:02:34.9]} 13. a4 {[%clk 0:02:23.3]} 13... Rb8 {[%clk 0:02:34.1]} 14.
Qc2 {[%clk 0:02:16.9]} 14... Ne5 {[%clk 0:02:05.3]} 15. Rfe1 {[%clk 0:02:05.9]}
15... g5 {[%clk 0:02:00.7]} 16. Bg3 {[%clk 0:02:05.1]} 16... g4 {[%clk
0:01:48.6]} 17. Nc4 {[%clk 0:01:09.8]} 17... Nxc4 {[%clk 0:01:39.9]} 18. Bxc4
{[%clk 0:01:10.7]} 18... Nh5 {[%clk 0:01:40.3]} 19. Ne2 {[%clk 0:00:53.5]} 19...
Nxg3 {[%clk 0:01:35.2]} 20. Nxg3 {[%clk 0:00:52.8]} 20... Be5 {[%clk 0:01:29.9]}
21. Nf5 {[%clk 0:00:46]} 21... Qg5 {[%clk 0:01:26.6]} 22. Bd3 {[%clk 0:00:40.8]}
22... b5 {[%clk 0:01:14.8]} 23. axb5 {[%clk 0:00:41.7]} 23... axb5 {[%clk
0:01:14.8]} 24. Ra7 {[%clk 0:00:35.9]} 24... c4 {[%clk 0:00:53.5]} 25. Ne7+
{[%clk 0:00:29.9]} 25... Kh8 {[%clk 0:00:53.7]} 26. Bf5 {[%clk 0:00:17.8]} 26...
Bxf5 {[%clk 0:00:50.1]} 27. Nxf5 {[%clk 0:00:18.7]} 27... b4 {[%clk 0:00:47.6]}
28. e4 {[%clk 0:00:18.5]} 28... c3 {[%clk 0:00:44.9]} 29. b3 {[%clk 0:00:12.3]}
29... Ra8 {[%clk 0:00:45.2]} 30. Rea1 {[%clk 0:00:10.5]} 30... Rxa7 {[%clk
0:00:42]} 31. Rxa7 {[%clk 0:00:11.4]} 31... Qd2 {[%clk 0:00:36.2]} 32. Ne3
{[%clk 0:00:07.1]} 32... Bd4 {[%clk 0:00:31.2]} 33. Ra2 {[%clk 0:00:07.2]} 33...
Bxe3 {[%clk 0:00:30.6]} 0-1

[Event "*** Titled Tuesday Blitz"]
[Site "Chess.com"]
[Date "2021.02.02"]
[Round "11"]
[White "Coiote53"]
[Black "The_filthy"]
[Result "0-1"]
[WhiteElo "2345"]
[BlackElo "2246"]
[TimeControl "180+1"]
[EndTime "12:06:28 PST"]
[Termination "The_filthy won by resignation"]

1. e4 {[%clk 0:03:00.9]} 1... e6 {[%clk 0:02:58.3]} 2. d4 {[%clk 0:03:00.7]}
2... d5 {[%clk 0:02:58.6]} 3. Nc3 {[%clk 0:03:01.3]} 3... Nf6 {[%clk 0:02:58.9]}
4. e5 {[%clk 0:03:01.1]} 4... Nfd7 {[%clk 0:02:59]} 5. f4 {[%clk 0:03:01.7]}
5... c5 {[%clk 0:02:57.4]} 6. Nf3 {[%clk 0:03:02.3]} 6... Nc6 {[%clk 0:02:57.5]}
7. Be3 {[%clk 0:03:01.9]} 7... Be7 {[%clk 0:02:57.9]} 8. Qd2 {[%clk 0:02:57.6]}
8... O-O {[%clk 0:02:56.9]} 9. Be2 {[%clk 0:02:58.2]} 9... cxd4 {[%clk
0:02:51.3]} 10. Nxd4 {[%clk 0:02:51.2]} 10... Nxd4 {[%clk 0:02:49.5]} 11. Bxd4
{[%clk 0:02:48]} 11... f6 {[%clk 0:02:50]} 12. O-O {[%clk 0:02:46.3]} 12... f5
{[%clk 0:02:48.1]} 13. Kh1 {[%clk 0:02:40]} 13... Nc5 {[%clk 0:02:47.8]} 14. Bf3
{[%clk 0:02:38.3]} 14... Ne4 {[%clk 0:02:47.3]} 15. Bxe4 {[%clk 0:02:37.8]}
15... fxe4 {[%clk 0:02:47.5]} 16. Ne2 {[%clk 0:02:35.9]} 16... Bd7 {[%clk
0:02:46.1]} 17. Rad1 {[%clk 0:02:35.8]} 17... Bb5 {[%clk 0:02:45.4]} 18. b3
{[%clk 0:02:33.4]} 18... Rc8 {[%clk 0:02:19.8]} 19. c3 {[%clk 0:02:31.9]} 19...
Qa5 {[%clk 0:02:14.3]} 20. a4 {[%clk 0:02:29.1]} 20... Bd3 {[%clk 0:02:14]} 21.
Rf2 {[%clk 0:02:23.5]} 21... b5 {[%clk 0:02:06.3]} 22. axb5 {[%clk 0:02:20.5]}
22... Qxb5 {[%clk 0:02:06]} 23. b4 {[%clk 0:02:19.2]} 23... a5 {[%clk
0:02:01.5]} 24. bxa5 {[%clk 0:02:17.6]} 24... Qxa5 {[%clk 0:02:01.3]} 25. Nc1
{[%clk 0:02:15.1]} 25... Bc4 {[%clk 0:02:00.1]} 26. g4 {[%clk 0:02:12.5]} 26...
Rf7 {[%clk 0:01:44.6]} 27. f5 {[%clk 0:02:10.2]} 27... Qa6 {[%clk 0:01:31.1]}
28. f6 {[%clk 0:02:02.9]} 28... gxf6 {[%clk 0:01:30.7]} 29. exf6 {[%clk
0:02:02.5]} 29... Bc5 {[%clk 0:01:22.4]} 30. Bxc5 {[%clk 0:01:48.9]} 30... Rxc5
{[%clk 0:01:22.5]} 31. g5 {[%clk 0:01:44.3]} 31... d4 {[%clk 0:01:08.8]} 32.
cxd4 {[%clk 0:01:41.1]} 32... Rf5 {[%clk 0:01:06.2]} 33. Rxf5 {[%clk 0:01:34.3]}
33... exf5 {[%clk 0:01:05.8]} 34. Rg1 {[%clk 0:01:29.8]} 34... e3 {[%clk
0:00:59.6]} 35. Qg2 {[%clk 0:01:21.8]} 35... Qe6 {[%clk 0:00:57]} 36. Qa8+
{[%clk 0:01:04]} 36... Rf8 {[%clk 0:00:56]} 37. Qa7 {[%clk 0:01:02.9]} 37...
Bd5+ {[%clk 0:00:55.5]} 38. Rg2 {[%clk 0:01:03.4]} 38... Qf7 {[%clk 0:00:48.5]}
39. Qc5 {[%clk 0:00:55.1]} 39... f4 {[%clk 0:00:42.6]} 40. Kg1 {[%clk
0:00:54.7]} 40... Bxg2 {[%clk 0:00:42.1]} 41. Kxg2 {[%clk 0:00:55.6]} 41... Qg6
{[%clk 0:00:38.1]} 42. Qd5+ {[%clk 0:00:48.2]} 42... Kh8 {[%clk 0:00:37.7]} 43.
Qb7 {[%clk 0:00:38]} 43... Qxg5+ {[%clk 0:00:34.6]} 44. Kf3 {[%clk 0:00:37.2]}
44... Qxf6 {[%clk 0:00:32.9]} 45. Ne2 {[%clk 0:00:35.9]} 45... Qh6 {[%clk
0:00:30.6]} 46. Qe7 {[%clk 0:00:30.4]} 46... Qh5+ {[%clk 0:00:28.2]} 47. Ke4
{[%clk 0:00:29.9]} 47... Re8 {[%clk 0:00:28.4]} 0-1

[Event "*** Titled Tuesday Blitz"]
[Site "Chess.com"]
[Date "2021.02.02"]
[Round "11"]
[White "PawnEatingZombie"]
[Black "Fortitudine"]
[Result "0-1"]
[WhiteElo "2227"]
[BlackElo "2333"]
[TimeControl "180+1"]
[EndTime "12:06:28 PST"]
[Termination "Fortitudine won by resignation"]

1. d4 {[%clk 0:03:00.9]} 1... Nf6 {[%clk 0:02:57.3]} 2. c4 {[%clk 0:03:00.7]}
2... c5 {[%clk 0:02:56.8]} 3. d5 {[%clk 0:02:59.9]} 3... b5 {[%clk 0:02:56.8]}
4. cxb5 {[%clk 0:03:00.8]} 4... a6 {[%clk 0:02:56.6]} 5. e3 {[%clk 0:03:01.7]}
5... g6 {[%clk 0:02:56.1]} 6. Nc3 {[%clk 0:03:00.9]} 6... Bg7 {[%clk 0:02:55.7]}
7. a4 {[%clk 0:03:01.5]} 7... O-O {[%clk 0:02:54.3]} 8. Nf3 {[%clk 0:03:02]}
8... d6 {[%clk 0:02:50.9]} 9. Ra3 {[%clk 0:03:01.8]} 9... Bb7 {[%clk 0:02:50.6]}
10. e4 {[%clk 0:02:58.2]} 10... e6 {[%clk 0:02:46.3]} 11. Be2 {[%clk 0:02:34.9]}
11... exd5 {[%clk 0:02:22.5]} 12. exd5 {[%clk 0:02:35.8]} 12... Re8 {[%clk
0:02:19.5]} 13. O-O {[%clk 0:02:33.7]} 13... Ne4 {[%clk 0:02:19]} 14. Nxe4
{[%clk 0:02:20.3]} 14... Rxe4 {[%clk 0:02:19.9]} 15. bxa6 {[%clk 0:01:48.5]}
15... Nxa6 {[%clk 0:02:13.5]} 16. Bb5 {[%clk 0:01:46.2]} 16... Nb4 {[%clk
0:02:08.4]} 17. Ng5 {[%clk 0:01:17.4]} 17... Rd4 {[%clk 0:01:51.8]} 18. Qf3
{[%clk 0:00:59.9]} 18... Qf6 {[%clk 0:01:50.5]} 19. Ne4 {[%clk 0:00:52.4]} 19...
Qxf3 {[%clk 0:01:47.2]} 20. gxf3 {[%clk 0:00:52.6]} 20... Rxd5 {[%clk
0:01:41.6]} 21. Bf4 {[%clk 0:00:46]} 21... Rd4 {[%clk 0:01:25]} 22. Bxd6 {[%clk
0:00:36.9]} 22... Bxe4 {[%clk 0:01:23.1]} 23. Bxc5 {[%clk 0:00:36.9]} 23... Bf5
{[%clk 0:01:11.1]} 24. Bxd4 {[%clk 0:00:29]} 24... Bxd4 {[%clk 0:01:12]} 25. Rd1
{[%clk 0:00:26.6]} 25... Bf6 {[%clk 0:01:07]} 26. a5 {[%clk 0:00:20.4]} 26...
Nc2 {[%clk 0:00:49.7]} 27. Ra4 {[%clk 0:00:19.4]} 27... Bxb2 {[%clk 0:00:42.8]}
28. Bc6 {[%clk 0:00:15.8]} 28... Ra7 {[%clk 0:00:41.7]} 29. a6 {[%clk
0:00:14.2]} 29... Kg7 {[%clk 0:00:36]} 30. Bb7 {[%clk 0:00:13.4]} 30... Bf6
{[%clk 0:00:31.6]} 31. Rc1 {[%clk 0:00:11.3]} 31... Nd4 {[%clk 0:00:31.3]} 32.
Rac4 {[%clk 0:00:07.7]} 32... Ne2+ {[%clk 0:00:31.4]} 33. Kf1 {[%clk 0:00:07.2]}
33... Nxc1 {[%clk 0:00:32.3]} 34. Rxc1 {[%clk 0:00:07.5]} 34... Bd3+ {[%clk
0:00:32.5]} 35. Ke1 {[%clk 0:00:06.4]} 35... Bxa6 {[%clk 0:00:33.1]} 0-1

[Event "*** Titled Tuesday Blitz"]
[Site "Chess.com"]
[Date "2021.02.02"]
[Round "11"]
[White "Szparu"]
[Black "GadimbayliA"]
[Result "1-0"]
[WhiteElo "2700"]
[BlackElo "2871"]
[TimeControl "180+1"]
[EndTime "12:06:30 PST"]
[Termination "Szparu won on time"]

1. d4 {[%clk 0:03:00.9]} 1... d5 {[%clk 0:02:59.9]} 2. c4 {[%clk 0:03:00.6]}
2... e5 {[%clk 0:03:00]} 3. dxe5 {[%clk 0:02:59.3]} 3... d4 {[%clk 0:03:00.9]}
4. Nf3 {[%clk 0:02:59]} 4... Nc6 {[%clk 0:03:01.5]} 5. a3 {[%clk 0:02:54.1]}
5... Nge7 {[%clk 0:03:01.3]} 6. b4 {[%clk 0:02:21.5]} 6... Ng6 {[%clk
0:02:59.5]} 7. Bb2 {[%clk 0:02:21.8]} 7... a5 {[%clk 0:02:58.9]} 8. b5 {[%clk
0:02:19.4]} 8... Ncxe5 {[%clk 0:02:59.1]} 9. Nxe5 {[%clk 0:02:09.8]} 9... Nxe5
{[%clk 0:02:59]} 10. Bxd4 {[%clk 0:01:57.1]} 10... Nxc4 {[%clk 0:02:58.4]} 11.
e3 {[%clk 0:01:55.1]} 11... Be6 {[%clk 0:02:58.5]} 12. Be2 {[%clk 0:01:44.2]}
12... Bd6 {[%clk 0:02:56.8]} 13. Nc3 {[%clk 0:01:35.2]} 13... Nxa3 {[%clk
0:02:52.2]} 14. O-O {[%clk 0:01:26.5]} 14... O-O {[%clk 0:02:40.2]} 15. Qa4
{[%clk 0:01:13.6]} 15... Qe7 {[%clk 0:02:39.9]} 16. Ne4 {[%clk 0:01:08.1]} 16...
Bb4 {[%clk 0:02:39.5]} 17. Rfc1 {[%clk 0:01:04.5]} 17... c6 {[%clk 0:02:22.1]}
18. bxc6 {[%clk 0:00:54.1]} 18... bxc6 {[%clk 0:02:23]} 19. Bc5 {[%clk 0:00:52]}
19... Bxc5 {[%clk 0:01:25.8]} 20. Nxc5 {[%clk 0:00:51.8]} 20... Nb5 {[%clk
0:01:26]} 21. Nxe6 {[%clk 0:00:50.5]} 21... fxe6 {[%clk 0:01:05.5]} 22. Rxc6
{[%clk 0:00:44.8]} 22... Nd6 {[%clk 0:01:00.9]} 23. Qa3 {[%clk 0:00:41.3]} 23...
Qf6 {[%clk 0:00:59.3]} 24. Bf3 {[%clk 0:00:36.3]} 24... Nb5 {[%clk 0:00:57.8]}
25. Qa2 {[%clk 0:00:33.6]} 25... Nc3 {[%clk 0:00:19]} 26. Qxe6+ {[%clk
0:00:32.2]} 26... Qxe6 {[%clk 0:00:18.9]} 27. Rxe6 {[%clk 0:00:33.1]} 27... Ra7
{[%clk 0:00:19.5]} 28. Rc6 {[%clk 0:00:29.7]} 28... Nb5 {[%clk 0:00:16.5]} 29.
Rc5 {[%clk 0:00:27.4]} 29... Nd6 {[%clk 0:00:04.3]} 30. Rcxa5 {[%clk 0:00:27.4]}
1-0

[Event "*** Titled Tuesday Blitz"]
[Site "Chess.com"]
[Date "2021.02.02"]
[Round "11"]
[White "boasovietica"]
[Black "pavelalexandru07"]
[Result "1-0"]
[WhiteElo "2487"]
[BlackElo "2316"]
[TimeControl "180+1"]
[EndTime "12:06:34 PST"]
[Termination "boasovietica won by resignation"]

1. e4 {[%clk 0:03:00.9]} 1... c5 {[%clk 0:02:58.2]} 2. Nf3 {[%clk 0:03:00.5]}
2... d6 {[%clk 0:02:57.5]} 3. d4 {[%clk 0:03:00.6]} 3... cxd4 {[%clk 0:02:54]}
4. Nxd4 {[%clk 0:03:01.5]} 4... Nf6 {[%clk 0:02:54.4]} 5. Nc3 {[%clk 0:03:01.2]}
5... a6 {[%clk 0:02:54.5]} 6. Bg5 {[%clk 0:03:00.8]} 6... Nbd7 {[%clk
0:02:47.1]} 7. Bc4 {[%clk 0:02:53.9]} 7... Qb6 {[%clk 0:02:43.5]} 8. Bb3 {[%clk
0:02:50]} 8... e6 {[%clk 0:02:42]} 9. Qd2 {[%clk 0:02:40.4]} 9... Nc5 {[%clk
0:02:41.6]} 10. Bxf6 {[%clk 0:02:36.7]} 10... gxf6 {[%clk 0:02:41.8]} 11. O-O-O
{[%clk 0:02:37.2]} 11... h5 {[%clk 0:02:39.4]} 12. Kb1 {[%clk 0:02:35.6]} 12...
Bd7 {[%clk 0:02:32.8]} 13. f4 {[%clk 0:02:34.9]} 13... Qc7 {[%clk 0:02:17.1]}
14. f5 {[%clk 0:02:30.1]} 14... b5 {[%clk 0:02:17.1]} 15. fxe6 {[%clk
0:02:20.4]} 15... fxe6 {[%clk 0:02:13.7]} 16. Qf4 {[%clk 0:01:45.9]} 16... Be7
{[%clk 0:02:02.8]} 17. Qf3 {[%clk 0:01:41.6]} 17... O-O-O {[%clk 0:01:49.3]} 18.
Nce2 {[%clk 0:01:26.5]} 18... Qb7 {[%clk 0:01:30.4]} 19. Nf4 {[%clk 0:01:06.7]}
19... Nxb3 {[%clk 0:01:08.1]} 20. cxb3 {[%clk 0:00:51.1]} 20... e5 {[%clk
0:00:16.7]} 21. Nd5 {[%clk 0:00:42.2]} 21... Bg4 {[%clk 0:00:12.6]} 22. Qc3+
{[%clk 0:00:21.4]} 22... Kd7 {[%clk 0:00:11.5]} 23. Nf5 {[%clk 0:00:14.9]} 23...
Bxf5 {[%clk 0:00:06.3]} 24. exf5 {[%clk 0:00:15.8]} 24... Rc8 {[%clk 0:00:06.5]}
25. Qf3 {[%clk 0:00:15]} 25... Qc6 {[%clk 0:00:05.2]} 26. Rc1 {[%clk 0:00:13.5]}
26... Qa8 {[%clk 0:00:05.3]} 27. Rxc8 {[%clk 0:00:10.4]} 27... Qxc8 {[%clk
0:00:01.7]} 28. Nb6+ {[%clk 0:00:09.6]} 1-0